Cogmind - Beta 10.1 @@@ ROGUE MODE // 2020.10.27 @ 21:50:32 Player: Sesu Result: Destroyed by S-10 Pest with Light Assault Rifle Performance ------------- Evolutions (1) 500 Regions Visited (3) 600 Robots Destroyed (22) 110 Value Destroyed (662) 662 Prototype IDs (0) 0 Alien Tech Used (0) 0 Bonus (0) 0 TOTAL SCORE: 1872 Bonus ------- None Cogmind --------- Core Integrity 0/400 Matter 194/300 Energy 100/100 System Corruption 0% Temperature Cool (0) Movement Core (300) Ox5 Location -9/Mines Parts ------- > --- POWER (1) -------- (None) > --- PROPULSION (3) --- (None) > --- UTILITY (3) ------ Large Storage Unit Sensor Array > --- WEAPON (2) ------- (None) > --- INVENTORY (10) --- Aluminum Leg Aluminum Leg Small Storage Unit Peak State ------------ > --- POWER ------------ Ion Engine > --- PROPULSION ------- Light Treads Aluminum Leg Aluminum Leg > --- UTILITY ---------- Small Storage Unit Improved Terrain Scanner Light Armor Plating > --- WEAPON ----------- Assault Rifle Grenade Launcher > --- INVENTORY -------- Ion Engine Sensor Array Tractor Beam EM Pulse Gun Light Assault Rifle [Rating: 10] Favorites ----------- Power Ion Engine Engine Ion Engine Propulsion Aluminum Leg Treads Light Treads Leg Aluminum Leg Utility Small Storage Unit Device Improved Terrain Scanner Storage Small Storage Unit Protection Light Armor Plating Weapon Grenade Launcher Energy Gun EM Pulse Gun Ballistic Gun Assault Rifle Launcher Grenade Launcher Build | -11 -10 -9 -9 ------- Run | Scr Mat Mat Min Slots Evolved 2 | . . 2 . Power . | . . . . Propulsion 1 | . . 1 . Utility 1 | . . 1 . Weapon . | . . . . Parts Attached 26 | 7 2 9 8 Power 3 | 1 . 1 1 Engine 3 | 1 . 1 1 Core . | . . . . Reactor . | . . . . Propulsion 7 | 2 . 3 2 Treads 1 | . . 1 . Leg 6 | 2 . 2 2 Wheel . | . . . . Hover . | . . . . Flight . | . . . . Utility 10 | 1 1 4 4 Device 5 | . 1 1 3 Storage 4 | 1 . 2 1 Processor . | . . . . Hackware . | . . . . Protection 1 | . . 1 . Artifact . | . . . . Weapon 6 | 3 1 1 1 Energy Gun 2 | 1 . . 1 Energy Cannon . | . . . . Ballistic Gun 3 | 2 . 1 . Ballistic Cannon . | . . . . Launcher 1 | . 1 . . Special Weapon . | . . . . Impact Weapon . | . . . . Slashing Weapon . | . . . . Piercing Weapon . | . . . . Special Melee Weapon . | . . . . Unidentified Prototypes . | . . . . Parts Lost 15 | . . 2 13 Power 2 | . . . 2 Propulsion 5 | . . . 5 Utility 4 | . . . 4 Weapon 4 | . . 2 2 Highest Loss Streak 9 | . . 1 9 Average Slot Usage (%) 86 | . 99 96 55 Engine 9 | . 14 11 1 Treads 4 | . . 11 . Leg 23 | . 28 22 21 Device 12 | . 13 11 14 Storage 12 | . 14 11 11 Protection 4 | . . 11 . Ballistic Gun 10 | . 14 8 6 Launcher 8 | . 13 10 . Naked Turns . | . . . . Heaviest Build 19 | 13 15 18 19 Greatest Support 30 | 20 20 20 30 Greatest Overweight (x) 1 | 1 . . . Average Overweight (x) . | . . . . Largest Inventory Capacity 10 | 6 6 10 10 Average Capacity 6 | 5 6 6 8 Most Carried 6 | 6 6 6 6 Average Carried 4 | 4 5 5 3 Final Capacity 10 | 6 6 6 10 Final Carried 6 | 6 6 6 3 Class Distribution -------------------- 100% | Mutant Dominant Class ---------------- Mutant | -10/Materials Mutant | -9/Materials Mutant | -9/Mines Resources | -11 -10 -9 -9 ----------- Run | Scr Mat Mat Min Matter Collected 640 | 196 188 107 149 Remotely 294 | . 188 . 106 Salvage Created 589 | . 223 217 149 Parts 48 | . 21 17 10 Haulers Intercepted . | . . . . Recyclers Shooed . | . . . . Parts Field Recycled . | . . . . Retrieved Matter . | . . . . Parts Self-Destructed . | . . . . Prevented . | . . . . Kills | -11 -10 -9 -9 ------- Run | Scr Mat Mat Min Combat Hostiles Destroyed 21 | . 10 8 3 Guns 11 | . 7 1 3 AOE 10 | . 3 7 . Classes Destroyed 4 | . 2 2 . Mechanic 1 | . . 1 . Swarmer 6 | . 6 . . Grunt 12 | . 4 5 3 Sentry 3 | . . 3 . Best Kill Streak 6 | . 6 6 2 Combat Bots Only 6 | . 6 6 2 Max Kills in Single Turn 3 | . 1 3 1 Gunslinging . | . . . . Exploded 3 | . 1 3 . Melee . | . . . . Uniques/NPCs Destroyed . | . . . . Combat | -11 -10 -9 -9 -------- Run | Scr Mat Mat Min Damage Taken 1779 | . 221 625 933 Core 452 | . 49 129 274 Absorbed by Shields . | . . . . Core Remaining (%) 90 | 100 80 . . Volleys Fired 81 | . 35 17 29 Largest 2 | . 2 2 2 Hottest 60 | . 50 50 60 Shots Fired 98 | . 37 27 34 Gun 78 | . 32 12 34 Cannon . | . . . . Launcher 20 | . 5 15 . Special . | . . . . Kinetic 73 | . 32 12 29 Thermal . | . . . . Explosive 20 | . 5 15 . Electromagnetic 5 | . . . 5 Robot Hit Streak 11 | . 4 11 7 Robot Miss Streak 3 | . 3 2 2 Penetration Max . | . . . . Secondary Targets . | . . . . Shots Hit Robots 66 | . 22 20 24 Core Hits 46 | . 15 21 10 Critical Hits . | . . . . Critical Kills . | . . . . Critical Parts Destroyed . | . . . . Melee Attacks . | . . . . Impact . | . . . . Slashing . | . . . . Piercing . | . . . . Sneak Attacks . | . . . . Combat Hostiles . | . . . . Follow-up Attacks . | . . . . Damage Inflicted 1322 | . 531 572 219 Guns 556 | . 246 91 219 Cannons . | . . . . Explosions 766 | . 285 481 . Melee . | . . . . Ramming . | . . . . Kinetic 505 | . 246 91 168 Thermal . | . . . . Explosive 766 | . 285 481 . Electromagnetic 51 | . . . 51 Impact . | . . . . Slashing . | . . . . Piercing . | . . . . Highest Corruption . | . . . . Average Corruption . | . . . . Corruption Purged . | . . . . Overload Shots . | . . . . Overflow Damage . | . . . . Projectiles . | . . . . Explosions . | . . . . Melee . | . . . . Knockbacks . | . . . . Impact . | . . . . Kinetic . | . . . . Secondary . | . . . . Self-Inflicted Damage 53 | . . 53 . Shots 4 | . . 4 . Rammed . | . . . . Targets Rammed . | . . . . Kicked . | . . . . Crushed . | . . . . Highest Temperature 34 | . . 5 34 Average Temperature 7 | . . 2 12 Received Heat Transfer 477 | . 30 183 264 Siege Activations . | . . . . Robots Corrupted . | . . . . Combat Hostiles . | . . . . Parts Fried . | . . . . Impact Corruptions . | . . . . Robots Melted . | . . . . Combat Hostiles . | . . . . Parts Melted . | . . . . Heat Transferred . | . . . . Parts Sabotaged . | . . . . Parts Stolen . | . . . . Parts Stripped . | . . . . Power Chain Reactions . | . . . . Missiles Intercepted . | . . . . Alert | -11 -10 -9 -9 ------- Run | Scr Mat Mat Min Peak Influence 396 | . 265 396 150 Initial 150 | . . 111 150 Average 175 | . 132 283 120 Maximum Alert Level 1 | . 1 1 . Low Security (%) 62 | 100 58 31 100 Level 1 37 | . 41 68 . Level 2 . | . . . . Level 3 . | . . . . Level 4 . | . . . . Level 5 . | . . . . High Security . | . . . . Max Security . | . . . . Squads Dispatched 4 | . 3 1 . Investigation 2 | . 2 . . Extermination . | . . . . Reinforcement 2 | . 1 1 . Assault . | . . . . Garrison . | . . . . Intercept . | . . . . Construction Impeded . | . . . . Haulers Reinforced . | . . . . Stealth | -11 -10 -9 -9 --------- Run | Scr Mat Mat Min Distress Signals 2 | . 1 1 . Communications Jammed . | . . . . Distress Signals . | . . . . Times Spotted 54 | . 17 19 18 Peak Tracking Total 10 | . 6 10 8 Tactical Retreats 3 | . 1 . 2 Traps | -11 -10 -9 -9 ------- Run | Scr Mat Mat Min Traps Triggered 2 | . 2 . . Indirectly . | . . . . Trap Hack Attempts . | . . . . Triggered . | . . . . Disarmed . | . . . . Reprogrammed . | . . . . Reused . | . . . . Traps Extracted . | . . . . Installed . | . . . . Triggered . | . . . . Machines | -11 -10 -9 -9 ---------- Run | Scr Mat Mat Min Machines Disabled 2 | . . 2 . Max in Single Turn 1 | . . 1 . Machines Sabotaged . | . . . . Garrisons Compromised . | . . . . Overloaded Fab Kills . | . . . . Fab Network Shutdowns . | . . . . Hacking | -11 -10 -9 -9 --------- Run | Scr Mat Mat Min Machines Accessed . | . . . . Terminals . | . . . . Fabricators . | . . . . Repair Stations . | . . . . Recycling Units . | . . . . Scanalyzers . | . . . . Garrison Access . | . . . . Total Hacks . | . . . . Successful . | . . . . Failed . | . . . . Catastrophic . | . . . . Database Lockouts . | . . . . Manual . | . . . . Terminals . | . . . . Fabricators . | . . . . Repair Stations . | . . . . Recycling Units . | . . . . Scanalyzers . | . . . . Garrison Access . | . . . . Terminal Hacks . | . . . . Fabricator Hacks . | . . . . Repair Station Hacks . | . . . . Recycling Unit Hacks . | . . . . Scanalyzer . | . . . . Garrison Access Hacks . | . . . . Unauthorized Hacks . | . . . . Terminals . | . . . . Fabricators . | . . . . Repair Stations . | . . . . Recycling Units . | . . . . Scanalyzers . | . . . . Garrison Access . | . . . . Data Cores Recovered . | . . . . Used . | . . . . Hacking Detections . | . . . . Full Trace Events . | . . . . Feedback Events . | . . . . Feedback Blocked . | . . . . Robot Schematics Acquired . | . . . . Robots Built . | . . . . Matter . | . . . . Time . | . . . . Total Robot Build Rating . | . . . . Part Schematics Acquired . | . . . . Parts Built . | . . . . Matter . | . . . . Time . | . . . . Total Part Build Rating . | . . . . Parts Repaired . | . . . . Time . | . . . . Parts Recycled . | . . . . Recycled Matter . | . . . . Retrieved Matter . | . . . . Retrieved Components . | . . . . Parts Scanalyzed . | . . . . Part Schematics Acquired . | . . . . Parts Damaged . | . . . . Bothacking | -11 -10 -9 -9 ------------ Run | Scr Mat Mat Min Used RIF Installer . | . . . . Robots Hacked . | . . . . Non-combat . | . . . . Combat . | . . . . Robot Hacks Applied . | . . . . Relay Couplers Released . | . . . . Robots Rewired . | . . . . Allies Hacked . | . . . . Hacks Repelled . | . . . . Allies | -11 -10 -9 -9 -------- Run | Scr Mat Mat Min Total Allies . | . . . . Largest Group . | . . . . Highest-Rated Group . | . . . . Highest-Rated Ally . | . . . . Total Orders . | . . . . Ally Attacks . | . . . . Total Damage . | . . . . Kills . | . . . . Allies Corrupted . | . . . . Allies Melted . | . . . . Intel | -11 -10 -9 -9 ------- Run | Scr Mat Mat Min Robot Analysis Total . | . . . . Derelict Logs Recovered . | . . . . Drone Launches . | . . . . Drone Recoveries . | . . . . Exploration | -11 -10 -9 -9 ------------- Run | Scr Mat Mat Min Turns Passed 982 | 65 305 359 253 Spaces Moved 566 | 47 187 250 82 Core 12 | 12 . . . Treads . | . . . . Legs 554 | 35 187 250 82 Wheels . | . . . . Hover . | . . . . Flight . | . . . . Fastest Speed 50 | 50 120 120 120 Average Speed 118 | 103 120 120 120 Slowest Speed 120 | 120 120 120 120 Overloaded Moves . | . . . . Propulsion Burnouts . | . . . . Robots Hopped . | . . . . Cave-ins Triggered . | . . . . Exploration Rate (%) 27 | 3 37 35 34 Regions Visited 3 Branch Regions 1 Pre-discovered Areas . | . . . . Known Exits Taken . | . . . . Unknown Exits Taken 3 | 1 1 1 . Scrap Searched . | . . . . Spaces Dug . | . . . . Terrain Destroyed 90 | . 22 68 . Melee . | . . . . Projectile . | . . . . AOE 90 | . 22 68 . Terrain Rammed . | . . . . Walls Destroyed . | . . . . Machines Disabled . | . . . . Actions | -11 -10 -9 -9 --------- Run | Scr Mat Mat Min Total 781 | 60 231 281 209 Wait 88 | . 2 1 85 Move 563 | 46 186 249 82 Hop . | . . . . Pick Up 17 | 7 3 3 4 Fast Attach 6 | 5 1 . . Attach 12 | 1 . 3 8 Detach 1 | . . . 1 Swap 8 | 1 1 6 . Drop 5 | . 3 2 . Fire 81 | . 35 17 29 Melee . | . . . . Ram . | . . . . Kick . | . . . . Crush . | . . . . Escape Stasis . | . . . . Rewire . | . . . . Trap . | . . . . Miscellaneous . | . . . . Route ------- -11/Scrapyard -10/Materials -9/Materials (discovered 2 exits: [*Min] / [*Sto]) -9/Mines (discovered 1 exit: [*Mat]) History --------- Turn | Location | Event 7 | -11/Scrapyard | Discovered new exit (range 14) 66 | -11/Scrapyard | Entered Materials 315 | -10/Materials | Build established: Mutant 366 | -10/Materials | Discovered new exit (range 4) 371 | -10/Materials | Entered another Materials area 371 | -9/Materials | Evolved 2 slots: Propulsion x1, Utility x1 373 | -9/Materials | Discovered new exit (range 14) 513 | -9/Materials | Discovered new exit (range 16) 730 | -9/Materials | Entered Mines 752 | -9/Mines | Discovered new exit (range 8) 827 | -9/Mines | Lost 9 parts (2p2n3u2w) 864 | -9/Mines | Assembled infested the area 869 | -9/Mines | Assisted by a Guerilla fighting off Assembled 937 | -9/Mines | Core integrity fell below 50% 962 | -9/Mines | Core integrity fell below 20% 983 | -9/Mines | Destroyed by S-10 Pest with Light Assault Rifle Last Messages --------------- Core Extractor disabled. FV-JBI(h): "I'll hold them off! Go on ahead or try to find another way!" as-40894 destroyed. Penetrated by HV Slug. Knocked back. Penetrated by HV Slug. D-53 Grenadier destroyed. U-05 Engineer lays Concrete. as-66676 suffers critical hit. as-66676 destroyed. U-05 Engineer lays Concrete. as-71581 destroyed. Heat Sink destroyed. U-05 Engineer destroyed. Aluminum Leg destroyed. as-68048 destroyed. U-05 Engineer destroyed. K-01 Serf collects debris. K-01 Serf destroyed. G-34 Mercenary destroyed. Map ----- +----------------------------------------------------+ | ????????????????????????????????????????# #?? | | ???????????????????????????????#####????# #?? | | ??????????????????????????????## ##??#### ###?? | | ?????????????????????????????## ####### ##### | | ??????????????????????? ???## | | ?????????????????????? ## ##### | | ?????????????????????? ######???? | | ???????????????????????# ##????????? | | ????????????????????????# ##?????????? | | ?????????????????????????# #????####### | | ?????????????????????????## ##??## | | ??????????????????????????### ## #### | | ????????????????????????????####??## ## | | ???????????????????????????????????# | | ???????????????????????????????????##" # | | ????????????????????????????????????#%" ## | | ???????????????????????????????????##"""" ##? | | ??????????????????????????????????## """ #?? | | ???????????????????????????####???# "" #?? | | ??????????????????????????# %g#???# ##? | | ??????????????????????????# ! #???# #? | | ??????????????????????????# #???## #? | | ?????????????????????????## ##???### ## | | ?????????????????????????# #????## # | | ????????????????????????## #????# = # | | ???????????????????######@ #?#####!% | | ???????????????????# s s ##### ] ## | | ???????????????????# ##### #?## % #?# | | ?????????????????????????#% #?# ##? # | | ?????????????????????????#!a### ? # | | ?????????????????????????#%|% ? ## | | ?????????????????????????# ### ## !| ##? | | ?????????????????????????# k#?## ###### ####?? | | ?????????????????????????# * ??###?????# % #????? | | ?????????????????????????####??????????# # #????? | | ???????????????????????????????????????# #??????? | | ???????????????????????????????????????? #??????? | | ???????????????????????????????????????? $??????? | | ???????????????????????????????????????? ??????? | | ????????????????????????????????????????###??????? | | ?????????????????????????????????????????????????? | | ?????????????????????????????????????????????????? | | ?????????????????????????????????????????????????? | | ?????????????????????????????????????????????????? | | ?????????????????????????????????????????????????? | | ?????????????????????????????????????????????????? | | ?????????????????????????????????????????????????? | | ?????????????????????????????????????????????????? | | ?????????????????????????????????????????????????? | | ?????????????????????????????????????????????????? | +----------------------------------------------------+ Best States ------------- Heat Dissipation 38 Energy Generation 10 Energy Capacity 250 Matter Stores 248 Matter Capacity 300 Sight Range 16 Robot Scan Range 10 Terrain Scan Range 16 Terrain Scan Density 10 Armor Coverage 150 Evasion (%) 50 Item Schematics ----------------- None Robot Schematics ------------------ None Fabricated ------------ Nothing Alien Tech Used ----------------- None Achievements -------------- Uninvited Guest Use The Force Challenges ------------ None Game ------ Seed SlugEnergyCloak Manual? 0 Play Time 00:30:10 Cumulative 3.4 hours Start 2020.10.27 @ 21:17:43 End 2020.10.27 @ 21:50:32 Sessions 1 Manual Loads 0 Difficulty Rogue Special Mode None Game No. 7 Rogue 7 Adventurer 0 Explorer 0 Win Type - Total 0 Types 0/0/0/0/0/0/0/0/0 Lore% 1 Gallery% 5 Achievement% 1 Wizard Run 0 Options --------- ASCII 0 Keyboard 0 Movement Mouse Keybinds 0 Fullscreen 1 Font 24/Smallcaps Map View 76x50 Tactical HUD 0 Map Filters NONE Filters NONE Steam 1 RUN: c5672db2-0d67-467f-aae3-d26517b82ff5